bitfinex/quotes_BTCUSD_20251113
["timestamp","ask_amount","ask_price","bid_price","bid_amount"]
[1763054847711,0.23053967,100410.0,100400.0,0.15431114]
[1763054847990,0.96527682,100410.0,100400.0,0.05688792]
[1763054848191,0.96527682,100410.0,100400.0,0.04799504]
[1763054848415,0.96727658,100410.0,100400.0,0.08357718]
[1763054848624,0.96727658,100410.0,100400.0,0.04799504]
[1763054848840,1.29027658,100410.0,100400.0,1e-08]
[1763054849063,0.19920318,100400.0,100390.0,0.03558214]
[1763054849285,0.93369033,100400.0,100390.0,0.03558214]
[1763054851161,0.93469033,100400.0,100390.0,0.03558214]
[1763054851367,0.93569033,100400.0,100390.0,0.08895536]
[1763054851795,0.19926272,100370.0,100360.0,0.07120189]
[1763054852003,0.23741272,100370.0,100360.0,0.07120189]
[1763054852215,0.30201272,100370.0,100360.0,0.07120189]
[1763054852431,0.95169987,100370.0,100360.0,0.07120189]
[1763054852648,0.19930244,100350.0,100340.0,0.07120189]
[1763054852857,0.19994244,100350.0,100340.0,0.07120189]
[1763054853063,0.28829244,100350.0,100340.0,0.07134186]
[1763054853282,0.28829244,100350.0,100340.0,0.07303149]
[1763054853496,0.93797959,100350.0,100340.0,0.07303149]
[1763054853934,0.93797959,100350.0,100340.0,0.0018296]
[1763054854156,0.28829244,100350.0,100340.0,0.0018296]
[1763054854376,0.02653,100350.0,100340.0,0.27235379]
[1763054854604,0.962013,100370.0,100350.0,0.1992875]
[1763054854817,0.961013,100370.0,100350.0,0.1992875]
[1763054855027,0.897063,100370.0,100360.0,0.00118112]
[1763054855481,0.955813,100370.0,100360.0,0.00118112]
[1763054855697,0.964233,100370.0,100360.0,0.00118112]
[1763054856562,0.962233,100370.0,100360.0,0.00118112]
[1763054856987,0.964233,100370.0,100360.0,0.00118112]
[1763054857206,0.31454585,100370.0,100360.0,0.00118112]
[1763054857415,0.966233,100370.0,100360.0,0.00118112]
[1763054858075,0.31654585,100370.0,100360.0,0.00118112]
[1763054858283,0.966233,100370.0,100360.0,0.00118112]
[1763054858909,1.289233,100370.0,100360.0,0.00118112]
[1763054861344,0.84898959,100350.0,100340.0,0.07134186]
[1763054861566,0.84898959,100350.0,100340.0,0.00013997]
[1763054861567,0.87557959,100350.0,100340.0,0.00013997]
[1763054861796,0.94009959,100350.0,100340.0,0.00013997]
[1763054862022,0.94009959,100350.0,100340.0,0.07134186]
[1763054863425,0.94209959,100350.0,100340.0,0.07134186]
[1763054864245,0.94409959,100350.0,100340.0,0.07134186]
[1763054866953,0.94409959,100350.0,100340.0,0.07185025]
[1763054867174,0.29441244,100350.0,100340.0,0.07185025]
[1763054867395,0.09511,100350.0,100340.0,0.27117255]
[1763054867606,0.22989244,100350.0,100340.0,0.27117255]
[1763054867814,0.03053,100350.0,100340.0,0.32767255]
[1763054868025,0.004,100350.0,100340.0,0.73742255]
[1763054868233,0.004,100350.0,100340.0,0.75505043]
[1763054868650,0.19928333,100360.0,100350.0,0.19930244]
[1763054868850,0.26386333,100360.0,100350.0,0.07146254]
[1763054869067,0.26451333,100360.0,100350.0,0.19930244]
[1763054869493,0.19993333,100360.0,100340.0,0.52246227]
[1763054869700,0.19930244,100350.0,100340.0,0.00013997]
[1763054869916,0.19930244,100350.0,100340.0,0.29763142]
[1763054870155,0.20128333,100360.0,100350.0,0.19930244]
[1763054870365,0.20228333,100360.0,100350.0,0.19930244]
[1763054870581,0.20566333,100360.0,100340.0,0.38438142]
[1763054870803,0.20466333,100360.0,100340.0,0.38438142]
[1763054871034,0.19930244,100350.0,100340.0,0.18505912]
[1763054871273,0.19930244,100350.0,100340.0,0.38438142]
[1763054871484,0.19930244,100350.0,100340.0,0.44088142]
[1763054871699,0.20228333,100360.0,100340.0,0.44088142]
[1763054871905,0.19928333,100360.0,100340.0,0.44088142]
[1763054872119,0.984563,100370.0,100350.0,0.24288244]
[1763054872334,0.897063,100370.0,100350.0,0.38613244]
[1763054872531,0.897063,100370.0,100360.0,0.19928258]
[1763054872748,0.19928258,100360.0,100350.0,0.10008]
[1763054872958,0.20128258,100360.0,100350.0,0.04358]
[1763054873177,0.20128258,100360.0,100350.0,0.29938244]
[1763054873844,0.002,100360.0,100350.0,0.29938244]
[1763054874055,0.26003258,100360.0,100350.0,0.04383417]
[1763054874262,0.25803258,100360.0,100350.0,0.04383417]
[1763054874470,0.78161758,100360.0,100350.0,0.00025417]
[1763054874911,0.78261758,100360.0,100350.0,0.19955661]
[1763054875129,0.77619758,100360.0,100350.0,0.04383417]
[1763054875542,0.71944758,100360.0,100350.0,0.24313661]
[1763054875746,0.20228258,100360.0,100350.0,0.24313661]
[1763054875949,0.20228258,100360.0,100350.0,0.29963661]
[1763054876191,0.20228258,100360.0,100350.0,0.24313661]
[1763054876438,0.003,100360.0,100350.0,0.29963661]
[1763054876647,0.003,100360.0,100350.0,0.38638661]
[1763054877297,0.20228258,100360.0,100350.0,0.38638661]
[1763054877503,0.003,100360.0,100350.0,0.38638661]
[1763054877712,0.20228258,100360.0,100350.0,0.04383417]
[1763054877913,0.20028258,100360.0,100350.0,0.04383417]
[1763054878122,0.25903258,100360.0,100350.0,0.00025417]
[1763054878348,0.25903258,100360.0,100350.0,0.19955661]
[1763054878760,0.20028258,100360.0,100350.0,0.04383417]
[1763054878975,0.20116258,100360.0,100350.0,0.04383417]
[1763054879189,0.20016258,100360.0,100350.0,0.04383417]
[1763054879412,0.20016258,100360.0,100350.0,0.00025417]
[1763054879886,0.71732758,100360.0,100350.0,0.00025417]
[1763054880085,0.28190258,100360.0,100350.0,0.00025417]
[1763054880287,0.79906758,100360.0,100350.0,0.00025417]
[1763054881141,0.80106758,100360.0,100350.0,0.00025417]
[1763054882855,1.31823258,100360.0,100350.0,0.00025417]
[1763054883290,0.80106758,100360.0,100350.0,0.00025417]
[1763054883707,1.31823258,100360.0,100350.0,0.00025417]
[1763054883910,1.64123258,100360.0,100350.0,0.00025417]
[1763054884741,1.64023258,100360.0,100350.0,0.00025417]
[1763054885274,1.64223258,100360.0,100350.0,0.00025417]
[1763054885717,1.64423258,100360.0,100350.0,0.00025417]
[1763054886590,0.005,100360.0,100350.0,0.24048661]
[1763054886781,0.005,100360.0,100350.0,0.38603661]
[1763054886992,0.005,100360.0,100350.0,0.70903661]
[1763054887221,0.005,100360.0,100350.0,0.75245535]
[1763054887434,0.002,100360.0,100350.0,0.75245535]
[1763054887856,0.004,100360.0,100350.0,0.75245535]
[1763054888289,0.002,100360.0,100350.0,1.26962035]
[1763054888945,0.21013323,100380.0,100370.0,0.19926272]
[1763054889187,0.20016984,100380.0,100370.0,0.28284272]
[1763054889805,0.00092697,100380.0,100370.0,0.37064272]
[1763054890043,0.00092697,100380.0,100370.0,0.69364272]
[1763054890669,0.00092697,100380.0,100370.0,0.73706146]
[1763054890877,0.00092697,100380.0,100370.0,1.25422646]
[1763054891497,0.10491391,100420.0,100410.0,0.04093]
[1763054891913,0.02653,100430.0,100420.0,0.19916351]
[1763054892116,0.02121169,100440.0,100430.0,0.19914368]
[1763054892322,0.01840157,100440.0,100430.0,0.24007368]
[1763054892563,0.19914368,100430.0,100420.0,0.45173]
[1763054892765,0.19914368,100430.0,100420.0,0.74906266]
[1763054892978,0.19959023,100440.0,100420.0,0.80681266]
[1763054893182,0.21798961,100440.0,100420.0,0.80681266]
[1763054893383,0.21798961,100440.0,100420.0,0.74906266]
[1763054893596,0.22567368,100430.0,100420.0,0.46209915]
[1763054893796,0.22567368,100430.0,100420.0,0.19916351]
[1763054893944,0.22567368,100430.0,100410.0,0.65090892]
[1763054894140,0.22567368,100430.0,100410.0,0.45173]
[1763054894354,0.19916351,100420.0,100410.0,0.36393]
[1763054894729,0.19916351,100420.0,100410.0,0.56311334]
[1763054894868,0.19916351,100420.0,100410.0,0.36393]
[1763054895277,0.30017368,100430.0,100410.0,0.56311334]
[1763054895484,0.19916351,100420.0,100410.0,0.323]
[1763054895680,0.19916351,100420.0,100410.0,0.52218334]
[1763054895881,0.19916351,100420.0,100410.0,0.324]
[1763054896170,0.19916351,100420.0,100410.0,0.36393]
[1763054896361,0.2001452,100430.0,100410.0,0.18648]
[1763054896678,0.1991452,100430.0,100410.0,0.38566334]
[1763054897083,0.00101578,100420.0,100410.0,0.38666334]
[1763054897289,0.20017929,100420.0,100410.0,0.04193]
[1763054897492,0.20017929,100420.0,100410.0,0.24111334]
[1763054897697,0.00101578,100420.0,100410.0,0.38666334]
[1763054898311,0.00101578,100420.0,100410.0,0.38566334]
[1763054898775,0.20017929,100420.0,100410.0,0.38566334]
[1763054899243,0.20017929,100420.0,100410.0,0.38666334]
[1763054899473,0.00101578,100420.0,100410.0,0.38666334]
[1763054899703,0.20017929,100420.0,100410.0,0.38666334]
[1763054900182,0.20017929,100420.0,100410.0,0.29886334]
[1763054900398,0.79084429,100420.0,100410.0,0.001]
[1763054900626,0.00101578,100420.0,100410.0,0.18748]
[1763054900854,0.79139429,100420.0,100410.0,0.001]
[1763054901267,0.27422929,100420.0,100410.0,0.001]
[1763054901526,0.25530929,100420.0,100400.0,0.56313181]
[1763054901746,0.25632706,100420.0,100400.0,0.65093181]
[1763054901955,0.25630984,100420.0,100410.0,0.19918334]
[1763054902164,0.25630984,100420.0,100400.0,0.65093181]
[1763054902597,0.25630984,100420.0,100410.0,0.19918334]
[1763054902815,0.25429406,100420.0,100410.0,0.19918334]
[1763054902998,0.25529406,100420.0,100410.0,0.19918334]
[1763054903438,0.001,100420.0,100410.0,0.19918334]
[1763054903653,0.19914522,100430.0,100410.0,0.34473334]
[1763054903894,0.19914522,100430.0,100420.0,0.19916351]
[1763054904100,0.19914368,100430.0,100420.0,0.19916351]
[1763054904869,0.19914368,100430.0,100410.0,0.28698334]
[1763054905133,0.19914368,100430.0,100420.0,0.19916351]
[1763054905717,0.20114368,100430.0,100420.0,0.19916351]
[1763054905916,0.71903868,100430.0,100400.0,0.46209915]
[1763054906119,0.19916351,100420.0,100410.0,0.19918334]
[1763054906579,0.80003586,100430.0,100410.0,0.19918334]
[1763054906734,0.19916351,100420.0,100410.0,0.19918334]
[1763054906948,0.79903586,100430.0,100410.0,0.19918334]
[1763054907372,0.19916351,100420.0,100410.0,0.19917855]
[1763054907836,0.19916351,100420.0,100410.0,0.20017855]
[1763054908030,0.19916351,100420.0,100410.0,0.19917855]
[1763054908238,0.79903586,100430.0,100410.0,0.19917855]
[1763054908382,0.00101578,100420.0,100410.0,0.28697855]
[1763054908809,0.00101578,100420.0,100410.0,0.34472855]
[1763054909009,0.20017929,100420.0,100410.0,0.34572855]
[1763054909212,0.20017929,100420.0,100410.0,0.34472855]
[1763054909428,0.00101578,100420.0,100410.0,0.34472855]
[1763054909778,0.20017929,100420.0,100410.0,0.34472855]
[1763054909998,0.00101578,100420.0,100410.0,0.34472855]
[1763054911330,0.00101578,100420.0,100410.0,0.86289355]
[1763054911551,0.28304973,100440.0,100420.0,0.19916351]
[1763054911771,0.3014061,100440.0,100430.0,0.19914368]
[1763054911996,0.28304973,100440.0,100430.0,0.19914368]
[1763054912213,0.28377973,100440.0,100430.0,0.19914368]
[1763054912418,0.00046638,100440.0,100430.0,0.24043368]
[1763054912661,0.19959023,100440.0,100430.0,0.04129]
[1763054912866,0.20159023,100440.0,100430.0,0.04129]
[1763054913095,0.00246638,100440.0,100430.0,0.29765368]
[1763054913309,0.0004,100450.0,100440.0,0.19912385]
[1763054913521,0.00053986,100450.0,100440.0,1.69658385]
[1763054913736,0.00053986,100450.0,100440.0,1.17941885]
[1763054914370,0.00053986,100450.0,100440.0,1.69658385]
[1763054914583,0.00053986,100450.0,100440.0,1.69858385]
[1763054914801,0.0004,100470.0,100460.0,0.75966795]
[1763054915013,0.01877843,100470.0,100460.0,0.25630421]
[1763054915651,0.01877843,100470.0,100460.0,0.33921421]
[1763054916087,0.0004,100470.0,100460.0,0.9979671]
[1763054916303,0.08786069,100500.0,100490.0,0.19902477]
[1763054916531,0.08056423,100500.0,100490.0,0.28962477]
[1763054916963,0.08056423,100500.0,100490.0,0.98786892]
[1763054916964,0.0453645,100500.0,100490.0,0.98786892]
[1763054917190,0.0453645,100500.0,100490.0,0.73895351]
[1763054917410,0.01893354,100500.0,100490.0,1.21269977]
[1763054917864,0.02296309,100500.0,100490.0,1.21269977]
[1763054918512,0.02396309,100500.0,100490.0,1.25611851]
[1763054918722,0.02196309,100500.0,100490.0,1.25611851]
[1763054918943,0.02296309,100500.0,100490.0,1.25611851]
[1763054919159,0.00456938,100500.0,100490.0,1.25611851]
[1763054919394,0.07157895,100520.0,100490.0,1.25611851]
[1763054919395,0.06163069,100520.0,100510.0,0.24240391]
[1763054919623,0.0183739,100520.0,100510.0,0.29749517]
[1763054919823,0.02643096,100520.0,100510.0,0.70340517]
[1763054920031,0.02643096,100520.0,100510.0,0.62049517]
[1763054920291,0.29007694,100530.0,100520.0,0.19896538]
[1763054920498,0.09113069,100530.0,100520.0,0.19896538]
[1763054921329,0.05593096,100530.0,100520.0,0.29713453]
[1763054921738,0.02883096,100530.0,100520.0,0.43726453]
[1763054921944,0.05793096,100530.0,100520.0,0.29713453]
[1763054922403,0.0024,100530.0,100520.0,0.95442953]
[1763054922656,0.0024,100530.0,100520.0,0.56129915]
[1763054922919,0.25687654,100530.0,100510.0,0.24027517]
[1763054923151,0.05893096,100530.0,100520.0,0.29713453]
[1763054923373,0.0034,100530.0,100520.0,0.43726453]
[1763054923620,0.0004,100530.0,100520.0,0.43726453]
[1763054923859,0.0014,100530.0,100520.0,0.35435453]
[1763054924096,0.22614558,100530.0,100520.0,0.35435453]
[1763054924307,0.22695558,100530.0,100510.0,0.64618517]
[1763054924522,0.19896538,100520.0,100510.0,0.56327517]
[1763054924738,0.19896538,100520.0,100510.0,0.04129]
[1763054925164,0.19898517,100510.0,100500.0,0.30710657]
[1763054925375,0.19898517,100510.0,100500.0,0.62017412]
[1763054925595,0.27813538,100520.0,100500.0,0.62017412]
[1763054925804,0.29772354,100530.0,100510.0,0.29749517]
[1763054926007,0.26152381,100530.0,100520.0,0.19896538]
[1763054926431,0.26152381,100530.0,100510.0,0.32318517]
[1763054926644,0.19896538,100520.0,100510.0,0.24027517]
[1763054926854,0.19896538,100520.0,100510.0,0.04129]
[1763054927280,0.19898517,100510.0,100500.0,0.63112436]
[1763054927493,0.22211517,100510.0,100500.0,0.62117412]
[1763054927731,0.19896538,100520.0,100510.0,0.19898517]
[1763054928182,0.19898517,100510.0,100500.0,0.70308412]
[1763054928605,0.22484517,100510.0,100500.0,0.62017412]
[1763054928816,0.02586,100510.0,100500.0,0.62117412]
[1763054928992,0.22484517,100510.0,100500.0,0.62117412]
[1763054929236,0.23509285,100530.0,100510.0,0.19898517]
[1763054929444,0.31257285,100530.0,100510.0,0.24027517]
[1763054929653,0.31257285,100530.0,100520.0,0.19896538]
[1763054929865,0.0262,100530.0,100520.0,0.19896538]
[1763054930090,0.0004,100530.0,100520.0,0.25618538]
[1763054930300,0.0004,100530.0,100520.0,0.66209538]
[1763054930785,0.0014,100530.0,100520.0,1.27742953]
[1763054930997,0.0004,100530.0,100520.0,0.76026453]
[1763054931207,0.00316055,100530.0,100520.0,0.80368327]
[1763054931417,0.00316055,100530.0,100520.0,1.32084827]
[1763054931621,0.00116055,100530.0,100520.0,1.32084827]
[1763054932066,1e-08,100530.0,100520.0,1.89350777]
[1763054932290,1e-08,100530.0,100520.0,0.89462104]
[1763054932505,1e-08,100530.0,100520.0,0.86810266]
[1763054932706,1e-08,100530.0,100520.0,1.41178625]
[1763054932914,9.8954,100550.0,100540.0,0.1989258]
[1763054933193,9.8958662,100550.0,100540.0,0.2974358]
[1763054933422,9.8958662,100550.0,100540.0,0.3803458]
[1763054933850,9.8958662,100550.0,100540.0,0.42376454]
[1763054934064,9.8958662,100550.0,100540.0,1.07106839]
[1763054934475,10.09477221,100550.0,100540.0,0.54783874]
[1763054934679,10.09477221,100550.0,100540.0,0.42151]
[1763054934888,10.12929221,100550.0,100540.0,0.2402158]
[1763054935099,9.9303862,100550.0,100540.0,0.2402158]
[1763054935309,9.8958662,100550.0,100540.0,0.47851495]
[1763054935515,9.8958662,100550.0,100540.0,1.49223754]
[1763054936385,9.8958662,100550.0,100540.0,0.84493369]
[1763054936592,9.8958662,100550.0,100540.0,1.49223754]
[1763054937868,9.39327008,100550.0,100540.0,1.49223754]
[1763054938076,9.17113371,100550.0,100540.0,1.49223754]
[1763054938303,9.1137686,100550.0,100540.0,1.49223754]
[1763054938510,9.11427545,100550.0,100540.0,1.49223754]
[1763054938687,9.11427545,100550.0,100540.0,0.84493369]
[1763054938897,9.01950665,100550.0,100540.0,1.49223754]
[1763054939126,9.01950665,100550.0,100540.0,1.49323754]
[1763054939514,8.87519102,100550.0,100540.0,0.84593369]
[1763054939781,8.87519102,100550.0,100540.0,1.49323754]
[1763054940011,8.87519102,100550.0,100540.0,0.7043458]
[1763054940199,8.87519102,100550.0,100540.0,0.7053458]
[1763054940400,8.87519102,100550.0,100540.0,1.35264965]
[1763054940726,8.87519102,100550.0,100540.0,1.39606839]
[1763054942358,8.87519102,100550.0,100540.0,0.74876454]
[1763054943618,8.87519102,100550.0,100540.0,1.39606839]
[1763054943848,9.07409703,100550.0,100540.0,0.04329]
[1763054944057,8.87519102,100550.0,100540.0,0.2422158]
[1763054944267,9.07930703,100550.0,100540.0,0.04329]
[1763054944472,9.07930703,100550.0,100540.0,0.062]
[1763054944897,9.15902703,100550.0,100540.0,0.06]
[1763054945348,9.16002703,100550.0,100540.0,0.06]
[1763054949712,9.80733088,100550.0,100540.0,0.06]
[1763054950333,10.13033088,100550.0,100540.0,1e-08]
[1763054950546,0.20894898,100520.0,100490.0,0.23240477]
[1763054950764,0.19898572,100510.0,100490.0,0.23240477]
[1763054951023,0.19900497,100500.0,100490.0,0.63572477]
[1763054951242,0.23103572,100510.0,100490.0,0.63572477]
[1763054951664,0.23103572,100510.0,100500.0,0.19900497]
[1763054951871,0.03205,100510.0,100500.0,0.19900497]
[1763054952418,0.23103517,100510.0,100500.0,0.19900497]
[1763054952644,0.19900497,100500.0,100490.0,0.63572477]
[1763054953003,0.23103517,100510.0,100490.0,0.69297477]
[1763054953206,0.23103517,100510.0,100500.0,0.19900497]
[1763054953432,0.30271517,100510.0,100490.0,0.69297343]
[1763054953644,0.19900497,100500.0,100490.0,0.69297343]
[1763054953817,0.19900497,100500.0,100490.0,0.69397343]
[1763054954023,0.30271517,100510.0,100500.0,0.19900497]
[1763054954452,0.10432,100510.0,100500.0,0.20000497]
[1763054954702,0.28889517,100510.0,100500.0,0.20000497]
[1763054955621,0.28889517,100510.0,100500.0,0.001]
[1763054956453,0.30330517,100510.0,100500.0,0.001]
[1763054957192,0.95060902,100510.0,100500.0,0.001]
[1763054957796,0.19902205,100500.0,100480.0,0.20899613]
[1763054958094,0.22065477,100490.0,100480.0,0.53213596]
[1763054958289,0.22065477,100490.0,100480.0,0.32313983]
[1763054958424,0.30183477,100490.0,100480.0,0.00013983]
[1763054958835,0.72351561,100490.0,100480.0,0.00013983]
[1763054959145,0.92254038,100490.0,100480.0,0.00013983]
[1763054959465,0.27523653,100490.0,100480.0,0.00113983]
[1763054959788,0.92254038,100490.0,100480.0,0.00113983]
[1763054960671,0.92254038,100490.0,100480.0,0.00013983]
[1763054961300,1.24554038,100490.0,100480.0,0.00013983]
[1763054961508,1.24754038,100490.0,100480.0,0.00013983]
[1763054961834,0.60023653,100490.0,100480.0,0.00013983]
[1763054962145,1.24954038,100490.0,100480.0,0.00013983]
[1763054966193,0.19908421,100460.0,100450.0,0.00244794]
[1763054966600,0.25694421,100460.0,100450.0,0.00244794]
[1763054966805,0.90424806,100460.0,100450.0,0.00244794]
[1763054967009,1.00241721,100460.0,100450.0,0.00244794]
[1763054968679,1.00241721,100460.0,100450.0,0.00344794]
[1763054969118,1.00241721,100460.0,100450.0,0.00244794]
[1763054970779,0.35511336,100460.0,100450.0,0.00244794]
[1763054970954,1.00241721,100460.0,100450.0,0.00244794]
[1763054973101,0.35511336,100460.0,100450.0,0.00244794]
[1763054973634,0.25694421,100460.0,100450.0,0.00244794]
[1763054975472,0.90424806,100460.0,100450.0,0.00244794]
[1763054977271,0.90524806,100460.0,100450.0,0.00244794]
[1763054977487,0.25794421,100460.0,100450.0,0.00244794]
[1763054977707,0.25894421,100460.0,100450.0,0.00244794]
[1763054978964,0.25894421,100460.0,100450.0,0.20155197]
[1763054979168,0.25894421,100460.0,100450.0,0.00244794]
[1763054980974,0.90624806,100460.0,100450.0,0.00244794]
[1763054981182,0.25894421,100460.0,100450.0,0.00244794]
[1763054981432,0.90624806,100460.0,100450.0,0.00244794]
[1763054982273,0.92464037,100460.0,100450.0,0.00244794]
[1763054982683,0.27733652,100460.0,100450.0,0.00244794]
[1763054982898,0.92464037,100460.0,100450.0,0.00244794]
[1763054983102,1.24764037,100460.0,100450.0,0.00244794]
[1763054983318,1.34580952,100460.0,100450.0,0.00244794]
[1763054983562,0.19914368,100430.0,100420.0,0.02670538]
[1763054983763,0.28769368,100430.0,100420.0,0.22633527]
[1763054983975,0.28769368,100430.0,100420.0,0.02793339]
[1763054984639,0.03135,100430.0,100420.0,0.2841969]
[1763054984843,0.23049368,100430.0,100420.0,0.2841969]
[1763054985123,0.28769368,100430.0,100420.0,0.02793339]
[1763054985327,0.28769368,100430.0,100420.0,0.02893339]
[1763054985666,0.28769368,100430.0,100420.0,0.02993339]
[1763054986448,0.28769368,100430.0,100420.0,0.2290969]
[1763054986654,0.28769368,100430.0,100420.0,0.02993339]
[1763054987069,0.28769368,100430.0,100420.0,0.2290969]
[1763054987272,0.28769368,100430.0,100420.0,0.06563295]
[1763054987477,0.28769368,100430.0,100420.0,0.26479646]
[1763054988207,0.03135,100430.0,100420.0,0.32189646]
[1763054988411,0.23049368,100430.0,100420.0,0.32189646]
[1763054988614,0.23049368,100430.0,100420.0,0.40317646]
[1763054989250,0.03135,100440.0,100430.0,0.19914368]
[1763054989453,0.23049191,100440.0,100430.0,0.25624368]
[1763054989635,0.19914368,100430.0,100420.0,0.44348398]
[1763054989996,0.19914368,100430.0,100420.0,0.49958398]
[1763054990191,0.19914368,100430.0,100420.0,0.4718786]
[1763054990581,0.23049191,100440.0,100430.0,0.19914368]
[1763054990787,0.23049191,100440.0,100430.0,0.22596843]
[1763054990984,0.23049191,100440.0,100430.0,0.02682475]
[1763054991191,0.19914368,100430.0,100420.0,0.03716594]
[1763054991414,0.25634368,100430.0,100420.0,0.03716594]
[1763054991621,0.25634368,100430.0,100420.0,0.02829432]
[1763054992016,0.25634368,100430.0,100420.0,0.02929432]
[1763054992400,0.25634368,100430.0,100420.0,0.02829432]
[1763054993240,0.27279368,100430.0,100420.0,0.02829432]
[1763054993644,0.27279368,100430.0,100420.0,0.02929432]
[1763054993863,0.27279368,100430.0,100420.0,0.00246638]
[1763054995472,0.27279368,100430.0,100420.0,0.02930832]
[1763054995875,0.27279368,100430.0,100420.0,0.03006995]
[1763054996325,0.78929167,100430.0,100420.0,0.03006995]
[1763054996534,0.78929167,100430.0,100420.0,0.00322801]
[1763054997302,0.78929167,100430.0,100420.0,0.00222801]
[1763054998108,0.88746082,100430.0,100420.0,0.00122801]
[1763054998309,0.88846082,100430.0,100420.0,0.00122801]
[1763054999301,0.88846082,100430.0,100420.0,0.02806995]
[1763054999491,0.88946082,100430.0,100420.0,0.02806995]
[1763054999917,0.88946082,100430.0,100420.0,0.00122801]
[1763055000324,1.21246082,100430.0,100420.0,0.00122801]
[1763055000611,1.2742965,100430.0,100420.0,1e-08]
[1763055000813,1.2742965,100430.0,100400.0,0.0625415]
[1763055000814,0.19918334,100410.0,100400.0,0.0625415]
[1763055001052,0.19918334,100410.0,100400.0,0.02684194]
[1763055001053,1.05013676,100410.0,100400.0,0.02684194]
[1763055001256,0.59582877,100410.0,100400.0,0.02684194]
[1763055001790,1.11232676,100410.0,100400.0,0.02684194]
[1763055001987,0.19920318,100400.0,100390.0,0.0625415]
[1763055002195,0.77903117,100400.0,100390.0,0.0625415]
[1763055002392,0.26253318,100400.0,100390.0,0.0625415]
[1763055002606,0.77903117,100400.0,100390.0,0.0625415]
[1763055002764,0.77903117,100400.0,100390.0,0.03569956]
[1763055003398,0.19982318,100400.0,100390.0,0.03569956]
[1763055003596,0.19920318,100400.0,100390.0,0.03569956]
[1763055003840,0.19964877,100410.0,100390.0,0.41042259]
[1763055004176,0.01099,100400.0,100390.0,0.32724907]
[1763055004380,0.21019318,100400.0,100390.0,0.03669956]
[1763055004583,0.01099,100400.0,100390.0,0.27467259]
[1763055004784,0.01099,100400.0,100390.0,0.32725442]
[1763055004785,0.21019318,100400.0,100390.0,0.32725442]
[1763055004987,0.21019318,100400.0,100390.0,0.07544956]
[1763055005187,0.21019318,100400.0,100390.0,0.03669956]
[1763055005388,0.27238318,100400.0,100390.0,0.03569956]
[1763055005942,0.27238318,100400.0,100390.0,0.03769956]
[1763055006147,0.78888117,100400.0,100390.0,0.03769956]
[1763055006302,0.27238318,100400.0,100390.0,0.002]
[1763055006562,0.21019318,100400.0,100390.0,0.03669956]
[1763055006768,0.27055318,100400.0,100390.0,0.001]
[1763055006969,0.27055318,100400.0,100390.0,0.00176198]
[1763055007484,0.78705117,100400.0,100390.0,0.00076198]
[1763055007691,0.27055318,100400.0,100390.0,0.00176198]
[1763055007894,0.88522032,100400.0,100390.0,0.00176198]
[1763055008280,1.21843354,100400.0,100390.0,0.00176198]
[1763055008869,1.26185228,100400.0,100390.0,0.00176198]
[1763055009707,1.26285228,100400.0,100390.0,0.00176198]
[1763055009889,1.77935027,100400.0,100390.0,1e-08]
[1763055010089,0.56564177,100390.0,100380.0,0.0002]
[1763055010300,0.65745177,100390.0,100380.0,0.0002]
[1763055010707,1.17394976,100390.0,100380.0,0.0002]
[1763055010918,0.19926272,100370.0,100360.0,0.0002]
[1763055011117,0.19930244,100350.0,100340.0,0.05385073]
[1763055011325,0.24819244,100350.0,100340.0,0.0002]
[1763055011552,1.14805043,100350.0,100340.0,0.0002]
[1763055011751,0.63155244,100350.0,100340.0,0.0002]
[1763055011953,1.14805043,100350.0,100340.0,0.0002]
[1763055012254,1.14805043,100350.0,100340.0,0.00033986]
[1763055012459,1.19146917,100350.0,100340.0,0.00033986]
[1763055012905,1.19446917,100350.0,100340.0,1e-08]
[1763055013332,1.29163832,100350.0,100340.0,1e-08]
[1763055013733,1.29363832,100350.0,100340.0,1e-08]
[1763055013962,1.29163832,100350.0,100340.0,1e-08]
[1763055014171,1.29563832,100350.0,100340.0,1e-08]
[1763055015712,1.25221958,100350.0,100340.0,1e-08]
[1763055016146,1.25221958,100350.0,100340.0,0.00127079]
[1763055016966,1.30563831,100350.0,100340.0,0.00127079]
[1763055017175,1.29563832,100350.0,100340.0,0.00127079]
[1763055017611,1.25221958,100350.0,100340.0,0.00127079]
[1763055018502,0.31455244,100350.0,100340.0,0.00127079]
[1763055018712,0.03735,100350.0,100340.0,0.20059309]
[1763055018917,0.03735,100350.0,100340.0,0.33815309]
[1763055019123,0.23665244,100350.0,100340.0,0.05456079]
[1763055019527,0.23665244,100350.0,100340.0,0.00127079]
[1763055019741,0.23465244,100350.0,100340.0,0.20059309]
[1763055019944,0.23065244,100350.0,100340.0,0.00127079]
[1763055020363,0.05345,100350.0,100340.0,0.00127079]
[1763055020780,0.82920043,100350.0,100340.0,0.00127079]
[1763055020985,0.63089799,100350.0,100340.0,0.00127079]
[1763055021141,0.07445,100350.0,100340.0,0.20059309]
[1763055021350,0.03435,100350.0,100340.0,0.25388309]
[1763055021543,0.002,100350.0,100340.0,0.33815309]
[1763055022526,0.002,100350.0,100340.0,0.75932224]
[1763055022775,0.002,100350.0,100340.0,1.31923897]
[1763055022972,1e-08,100350.0,100340.0,1.31923897]
[1763055023177,0.02901,100390.0,100380.0,0.19924287]
[1763055023397,0.0183401,100390.0,100380.0,0.29101287]
[1763055023612,0.0183401,100390.0,100380.0,0.37528287]
[1763055024765,0.0473501,100390.0,100380.0,0.23872287]
[1763055024970,0.0473501,100390.0,100380.0,0.29201287]
[1763055025174,0.0473501,100390.0,100380.0,0.37928287]
[1763055025554,0.0473501,100390.0,100380.0,0.37628287]
[1763055025701,0.24657313,100390.0,100380.0,0.09477]
[1763055025908,0.86312112,100390.0,100380.0,0.002]
[1763055026107,0.0473501,100390.0,100380.0,0.33880287]
[1763055026301,0.0183401,100390.0,100380.0,0.33880287]
[1763055026519,0.0183401,100390.0,100380.0,0.85530086]
[1763055026727,0.0183401,100390.0,100380.0,1.2217196]
[1763055027184,0.0183401,100390.0,100380.0,0.66180287]
[1763055027396,0.24211313,100390.0,100380.0,0.57753287]
[1763055027737,0.24211313,100390.0,100380.0,0.25453287]
[1763055027947,0.24211313,100390.0,100380.0,0.002]
[1763055028173,0.26211313,100390.0,100380.0,0.20124287]
[1763055028403,0.0183401,100390.0,100380.0,0.43697202]
[1763055028613,0.0183401,100390.0,100380.0,0.75997202]
[1763055028816,0.0183401,100390.0,100380.0,1.27672407]
[1763055029261,0.86057958,100420.0,100410.0,0.19918334]
[1763055029470,0.19918334,100410.0,100390.0,0.33414201]
[1763055029682,0.238723,100410.0,100400.0,0.19920318]
[1763055030098,0.03953966,100410.0,100400.0,0.24985318]
[1763055030328,0.01837737,100410.0,100400.0,0.84311117]
[1763055030530,0.01837737,100410.0,100400.0,0.94128032]
[1763055030733,0.01837737,100410.0,100400.0,1.26428032]
[1763055030947,0.01837737,100410.0,100400.0,0.74778233]
[1763055031130,0.01937737,100410.0,100400.0,0.74778233]